fUST/lending_fUST_20250625
["ID","MTS","AMOUNT","RATE_DAILY","PERIOD"]
[367494103,1750823442705,-400.0,0.00019178,2]
[367494104,1750823442836,-400.0,0.00019178,2]
[367494105,1750823442846,-400.0,0.00019178,2]
[367494106,1750823442855,-255.91,0.00019178,2]
[367494107,1750823442864,-500.0,0.00019178,2]
[367494108,1750823442873,-500.0,0.00019178,2]
[367494109,1750823442883,-500.0,0.00019178,2]
[367494110,1750823442892,-500.0,0.00019178,2]
[367494111,1750823442902,-305.23624713,0.00019178,2]
[367494112,1750823442912,-500.0,0.00019178,2]
[367494113,1750823442922,-500.0,0.00019178,2]
[367494114,1750823442931,-500.0,0.00019178,2]
[367494115,1750823442940,-500.0,0.00019178,2]
[367494116,1750823442949,-444.563126,0.00019178,2]
[367494117,1750823442958,-802.4187796,0.00019178,2]
[367494118,1750823442968,-1500.0,0.00019227,2]
[367494119,1750823442977,-2763.00764611,0.00019279,2]
[367494120,1750823442987,-100000.0,0.00019329,2]
[367494121,1750823442996,-890.86,0.00019405,2]
[367494122,1750823443007,-1060.82,0.00019405,2]
[367494123,1750823443017,-7282.61,0.00019405,2]
[367494124,1750823443026,-1102.64,0.00019405,2]
[367494125,1750823443036,-640.56,0.00019405,2]
[367494126,1750823443045,-659.15,0.00019405,2]
[367494127,1750823443055,-1266.14,0.00019405,2]
[367494128,1750823443064,-460.0,0.00019405,2]
[367494129,1750823443073,-707.96,0.00019406,2]
[367494130,1750823443082,-460.0,0.00019406,2]
[367494131,1750823443092,-460.0,0.00019406,2]
[367494132,1750823443101,-1838.55,0.00019406,2]
[367494133,1750823443111,-905.61,0.00019406,2]
[367494134,1750823443121,-460.0,0.00019407,2]
[367494135,1750823443130,-896.76,0.00019407,2]
[367494136,1750823443150,-574.27,0.00019407,2]
[367494138,1750823443161,-486.08,0.00019407,2]
[367494140,1750823443170,-915.48,0.00019407,2]
[367494141,1750823443180,-460.0,0.00019407,2]
[367494142,1750823443190,-756.83,0.00019407,2]
[367494143,1750823443200,-517.33,0.00019407,2]
[367494144,1750823443210,-1120.47637463,0.00019452,2]
[367494145,1750823443220,-2763.00764611,0.00019555,2]
[367494146,1750823443230,-890.86,0.00019679,2]
[367494147,1750823443240,-1060.82,0.00019679,2]
[367494148,1750823443249,-7282.61,0.00019679,2]
[367494149,1750823443260,-1102.64,0.00019679,2]
[367494150,1750823443271,-640.56,0.00019679,2]
[367494151,1750823443281,-659.15,0.00019679,2]
[367494152,1750823443291,-1266.14,0.00019679,2]
[367494153,1750823443301,-460.0,0.00019679,2]
[367494154,1750823443311,-707.96,0.0001968,2]
[367494155,1750823443320,-460.0,0.0001968,2]
[367494156,1750823443330,-460.0,0.0001968,2]
[367494157,1750823443339,-1838.55,0.0001968,2]
[367494158,1750823443349,-905.61,0.0001968,2]
[367494159,1750823443359,-474.36,0.00019681,2]
[367494160,1750823443368,-896.76,0.00019681,2]
[367494161,1750823443378,-574.27,0.00019681,2]
[367494162,1750823443388,-486.08,0.00019681,2]
[367494163,1750823443398,-915.48,0.00019681,2]
[367494164,1750823443408,-460.0,0.00019681,2]
[367494166,1750823443417,-756.83,0.00019681,2]
[367494168,1750823443427,-517.33,0.00019681,2]
[367494170,1750823443436,-2000.0,0.00019775,2]
[367494171,1750823443446,-2000.0,0.000198,3]
[367494172,1750823443455,-2000.0,0.000198,4]
[367494173,1750823443465,-2763.00764611,0.00019831,2]
[367494174,1750823443474,-890.86,0.00019953,2]
[367494175,1750823443484,-1060.82,0.00019953,2]
[367494176,1750823443494,-7282.61,0.00019953,2]
[367494177,1750823443504,-1102.64,0.00019953,2]
[367494178,1750823443514,-640.56,0.00019953,2]
[367494179,1750823443524,-659.15,0.00019953,2]
[367494180,1750823443534,-1266.14,0.00019953,2]
[367494181,1750823443543,-460.0,0.00019953,2]
[367494182,1750823443553,-707.96,0.00019954,2]
[367494183,1750823443562,-306.43534685,0.00019954,2]
[367494184,1750823443571,-460.0,0.00019954,2]
[367494185,1750823443581,-1838.55,0.00019954,2]
[367494186,1750823443590,-905.61,0.00019954,2]
[367494187,1750823443599,-896.76,0.00019955,2]
[367494188,1750823443609,-574.27,0.00019955,2]
[367494189,1750823443619,-486.08,0.00019955,2]
[367494190,1750823443628,-915.48,0.00019955,2]
[367494191,1750823443638,-460.0,0.00019955,2]
[367494193,1750823443647,-756.83,0.00019955,2]
[367494194,1750823443656,-517.33,0.00019955,2]
[367494195,1750823443665,-300.0,0.0002,2]
[367494196,1750823443675,-182.40874993,0.00020014,2]
[367494197,1750823443684,-1381.0,0.00020019,2]
[367494198,1750823443693,-1381.0,0.00020071,2]
[367494199,1750823443703,-177.85,0.000201,2]
[367494200,1750823443712,-2763.00764611,0.00020107,2]
[367494201,1750823443722,-193.67810133,0.00020145,2]
[367494202,1750823443731,-1172.691,0.00020164,2]
[367494203,1750823443740,-1381.0,0.00020185,2]
[367494204,1750823443750,-187.54744,0.00020187,2]
[367494205,1750823443760,-587.0,0.00020209,2]
[367494206,1750823443769,-587.0,0.0002021,2]
[367494207,1750823443779,-1381.0,0.00020223,2]
[367494208,1750823443788,-890.86,0.00020227,2]
[367494209,1750823443798,-1060.82,0.00020227,2]
[367494210,1750823443807,-7282.61,0.00020227,2]
[367494211,1750823443817,-1102.64,0.00020227,2]
[367494212,1750823443828,-640.56,0.00020227,2]
[367494213,1750823443838,-659.15,0.00020227,2]
[367494214,1750823443848,-1266.14,0.00020227,2]
[367494215,1750823443858,-460.0,0.00020227,2]
[367494216,1750823443867,-707.96,0.00020228,2]
[367494217,1750823443877,-341.58,0.00020228,2]
[367494218,1750823443887,-1838.55,0.00020228,2]
[367494219,1750823443896,-905.61,0.00020228,2]
[367494220,1750823443906,-896.76,0.00020229,2]
[367494221,1750823443915,-574.27,0.00020229,2]
[367494222,1750823443924,-486.08,0.00020229,2]
[367494223,1750823443934,-915.48,0.00020229,2]
[367494224,1750823443946,-460.0,0.00020229,2]
[367494225,1750823443955,-756.83,0.00020229,2]
[367494226,1750823443964,-517.33,0.00020229,2]
[367494227,1750823443973,-500.0,0.0002026,2]
[367494228,1750823443983,-507.89080019,0.00020323,2]
[367494229,1750823443992,-159.1692736,0.00020356,2]
[367494230,1750823444002,-2763.00764611,0.00020383,3]
[367494231,1750823444012,-1381.0,0.00020385,2]
[367494232,1750823444021,-1381.0,0.0002043,2]
[367494233,1750823444031,-2000.0,0.000205,5]
[367494234,1750823444040,-2000.0,0.000205,6]
[367494235,1750823444050,-2000.0,0.000205,7]
[367494236,1750823444059,-890.86,0.00020501,2]
[367494237,1750823444068,-1060.82,0.00020501,2]
[367494238,1750823444078,-7282.61,0.00020501,2]
[367494239,1750823444088,-1102.64,0.00020501,2]
[367494240,1750823444098,-640.56,0.00020501,2]
[367494241,1750823444108,-659.15,0.00020501,2]
[367494242,1750823444117,-1266.14,0.00020501,2]
[367494243,1750823444127,-707.96,0.00020502,2]
[367494244,1750823444136,-1838.55,0.00020502,2]
[367494245,1750823444146,-905.61,0.00020502,2]
[367494246,1750823444156,-896.76,0.00020503,2]
[367494248,1750823444165,-574.27,0.00020503,2]
[367494250,1750823444174,-486.08,0.00020503,2]
[367494252,1750823444183,-915.48,0.00020503,2]
[367494253,1750823444193,-460.0,0.00020503,2]
[367494254,1750823444207,-756.83,0.00020503,2]
[367494255,1750823444216,-517.33,0.00020503,2]
[367494256,1750823444226,-500.0,0.00020547,14]
[367494257,1750823444235,-936.16529868,0.00020659,3]
[367494258,1750823444377,-1826.84234743,0.00020659,3]
[367494259,1750823444388,-73.79630695,0.00020691,3]
[367494276,1750823446603,-387.84145659,0.00016939,2]
[367494301,1750823594402,3000.0,0.00023,30]
[367494304,1750823914379,178.170068,0.00013699,2]
[367494312,1750824187021,535.0,0.00016,2]
[367494315,1750824426065,8539.08440113,0.00015937,2]
[367494316,1750824426088,16360.91559887,0.00015937,2]
[367494317,1750824527049,236.48419194,0.00025698,120]
[367494321,1750824632682,-166.00980114,0.00016837,2]
[367494322,1750824632697,-300.0,0.00016935,2]
[367494323,1750824632706,-1200.0,0.00016935,2]
[367494324,1750824632715,-300.0,0.00016936,2]
[367494325,1750824632725,-460.0,0.00016936,2]
[367494326,1750824632734,-460.0,0.00016936,2]
[367494327,1750824632743,-883.05,0.00016936,2]
[367494328,1750824632752,-598.06,0.00016936,2]
[367494329,1750824632761,-460.0,0.00016936,2]
[367494330,1750824632771,-977.58,0.00016936,2]
[367494331,1750824632780,-5461.96,0.00016936,2]
[367494332,1750824632789,-1138.32,0.00016936,2]
[367494333,1750824632799,-460.0,0.00016936,2]
[367494334,1750824632808,-628.94,0.00016936,2]
[367494335,1750824632817,-460.0,0.00016936,2]
[367494336,1750824632826,-642.19,0.00016936,2]
[367494337,1750824632835,-1017.72,0.00016936,2]
[367494338,1750824632844,-460.0,0.00016936,2]
[367494339,1750824632854,-319.494687,0.00016936,2]
[367494340,1750824632877,-140.505313,0.00016936,2]
[367494341,1750824632887,-469.88910191,0.00016936,2]
[367494342,1750824632896,-874.95,0.00016936,2]
[367494343,1750824632905,-3217.93575463,0.00016937,2]
[367494344,1750824632916,-1461.71268318,0.00016937,2]
[367494396,1750824640900,-460.0,0.00016936,2]
[367494398,1750824640909,-1864.13,0.00016937,2]
[367494690,1750824643707,-5775.01925522,0.00016937,2]
[367494692,1750824643717,-460.0,0.00016937,2]
[367494694,1750824643726,-460.0,0.00016937,2]
[367494697,1750824643736,-377.76267543,0.00016937,2]
[367494699,1750824643746,-460.0,0.00016937,2]
[367494701,1750824643755,-460.0,0.00016937,2]
[367494703,1750824643764,-460.0,0.00016937,2]
[367494705,1750824643774,-464.30055182,0.00016937,2]
[367494707,1750824643783,-460.0,0.00016937,2]
[367494709,1750824643792,-460.0,0.00016937,2]
[367494710,1750824643801,-460.0,0.00016937,2]
[367494712,1750824643810,-460.0,0.00016937,2]
[367494716,1750824643820,-460.0,0.00016937,2]
[367494718,1750824643828,-460.0,0.00016937,2]
[367494742,1750824643984,-460.0,0.00016937,2]
[367494745,1750824643994,-460.0,0.00016937,2]
[367494747,1750824644014,-605.32,0.00016937,2]
[367494749,1750824644024,-346.95022332,0.00016937,2]
[367494752,1750824644034,-460.0,0.00016937,2]
[367494753,1750824644043,-460.0,0.00016937,2]
[367494755,1750824644053,-460.0,0.00016937,2]
[367494757,1750824644063,-468.67487944,0.00016937,2]
[367494759,1750824644072,-460.0,0.00016937,2]
[367494761,1750824644082,-460.0,0.00016937,2]
[367494763,1750824644091,-460.0,0.00016937,2]
[367494765,1750824644101,-460.0,0.00016937,2]
[367494767,1750824644111,-460.0,0.00016937,2]
[367494769,1750824644120,-1779.47,0.00016937,2]
[367494771,1750824644130,-460.0,0.00016937,2]
[367494773,1750824644140,-460.0,0.00016937,2]
[367494775,1750824644149,-460.0,0.00016937,2]
[367494777,1750824644159,-460.0,0.00016937,2]
[367494779,1750824644168,-487.45,0.00016937,2]
[367494782,1750824644178,-897.11,0.00016937,2]
[367494783,1750824644187,-262.7050827,0.00016937,2]
[367494787,1750824644207,-197.2949173,0.00016937,2]
[367494789,1750824644216,-460.0,0.00016937,2]
[367494791,1750824644226,-460.0,0.00016937,2]
[367494793,1750824644235,-460.0,0.00016937,2]
[367494795,1750824644244,-91.67527944,0.00016937,2]
[367494797,1750824644256,-368.32472056,0.00016937,2]
[367494799,1750824644266,-241.20293571,0.00016937,2]
[367495048,1750824646699,-218.79706429,0.00016937,2]
[367495050,1750824646708,-225.35207159,0.00016938,2]
[367495052,1750824646717,-460.0,0.00016938,2]
[367495054,1750824646727,-428.12169028,0.00016938,2]
[367495056,1750824646736,-465.0649024,0.00016938,2]
[367495058,1750824646745,-460.0,0.00016938,2]
[367495060,1750824646754,-460.0,0.00016938,2]
[367495061,1750824646763,-566.92,0.00016938,2]
[367495063,1750824646773,-460.0,0.00016938,2]
[367495065,1750824646783,-460.0,0.00016938,2]
[367495067,1750824646793,-460.0,0.00016938,2]
[367495069,1750824646802,-500.0,0.00016938,2]
[367495071,1750824646812,-500.0,0.00016938,2]
[367495073,1750824646821,-500.0,0.00016938,2]
[367495075,1750824646831,-500.0,0.00016938,2]
[367495077,1750824646840,-460.0,0.00016938,2]
[367495079,1750824646850,-460.0,0.00016938,2]
[367495081,1750824646859,-460.0,0.00016938,2]
[367495083,1750824646868,-460.0,0.00016938,2]
[367495085,1750824646877,-460.0,0.00016938,2]
[367495087,1750824646887,-460.0,0.00016938,2]
[367495089,1750824646896,-460.0,0.00016938,2]
[367495091,1750824646905,-460.45259994,0.00016938,2]
[367495093,1750824646914,-460.0,0.00016938,2]
[367495095,1750824646923,-460.77930674,0.00016938,2]
[367495097,1750824646932,-278.36209615,0.00016938,2]
[367495099,1750824646942,-460.0,0.00016938,2]
[367495101,1750824646951,-460.0,0.00016938,2]
[367495102,1750824646960,-460.0,0.00016938,2]
[367495104,1750824646970,-460.0,0.00016938,2]
[367495106,1750824646979,-460.0,0.00016938,2]
[367495108,1750824646988,-607.44,0.00016938,2]
[367495110,1750824646997,-460.98863409,0.00016938,2]
[367495112,1750824647006,-460.0,0.00016938,2]
[367495114,1750824647016,-460.0,0.00016938,2]
[367495116,1750824647024,-460.0,0.00016938,2]
[367495118,1750824647034,-460.58318263,0.00016938,2]
[367495120,1750824647044,-460.0,0.00016938,2]
[367495122,1750824647054,-460.0,0.00016938,2]
[367495124,1750824647064,-460.0,0.00016938,2]
[367495126,1750824647074,-460.48024225,0.00016938,2]
[367495127,1750824647083,-460.0,0.00016938,2]
[367495129,1750824647094,-460.0,0.00016938,2]
[367495131,1750824647104,-460.0,0.00016938,2]
[367495133,1750824647113,-460.0,0.00016938,2]
[367495135,1750824647123,-952.31,0.00016938,2]
[367495137,1750824647133,-460.0,0.00016938,2]
[367495139,1750824647142,-460.0,0.00016938,2]
[367495141,1750824647151,-461.16129522,0.00016938,2]
[367495143,1750824647161,-122.05827086,0.00016938,2]
[367495157,1750824647299,-62.3595381,0.00016938,2]
[367495159,1750824647309,-306.29253025,0.00016938,2]
[367495462,1750824774332,400.0,0.00023,30]
[367495463,1750824857697,177.495525,0.00013699,2]
[367495467,1750825310795,163.0,0.00016,2]
[367495468,1750825311813,163.0,0.00016,2]
[367495469,1750825312211,163.0,0.00016,2]
[367495470,1750825312542,163.0,0.00016,2]
[367495471,1750825321190,163.0,0.00016,3]
[367495472,1750825321586,163.0,0.00016,3]
[367495473,1750825325022,163.0,0.00016,2]
[367495474,1750825325383,163.0,0.00016,2]
[367495475,1750825327303,163.0,0.00016,3]
[367495476,1750825328647,163.0,0.00016,3]
[367495477,1750825333781,300.74,0.000219,30]
[367495478,1750825366740,163.0,0.00016,3]
[367495479,1750825367136,163.0,0.00016,3]
[367495480,1750825407441,1505.58887613,0.00015893,2]
[367495481,1750825407464,11631.22287907,0.00015893,2]
[367495484,1750825563019,-163.27575699,0.00016652,2]
[367495485,1750825563043,-292.78428028,0.00016652,2]
[367495486,1750825563064,-586.30993539,0.00016702,2]
[367495487,1750825563086,-183.22057125,0.00016834,2]
[367495488,1750825563108,-160.0,0.00016906,2]
[367495489,1750825563131,-300.0,0.00016929,2]
[367495490,1750825563153,-300.0,0.0001693,2]
[367495491,1750825563175,-300.0,0.0001693,2]
[367495492,1750825563197,-1200.0,0.0001693,2]
[367495493,1750825563219,-3586.85606933,0.00016931,2]
[367495494,1750825563242,-460.0,0.00016931,2]
[367495495,1750825563265,-460.0,0.00016931,2]
[367495496,1750825563287,-500.0,0.00016931,2]
[367495497,1750825563308,-205.76561634,0.00016931,2]
[367495498,1750825563330,-500.0,0.00016931,2]
[367495499,1750825563356,-500.0,0.00016931,2]
[367495500,1750825563379,-501.9944327,0.00016931,2]
[367495501,1750825563401,-500.0,0.00016931,2]
[367495502,1750825563424,-500.0,0.00016931,2]
[367495503,1750825563446,-500.0,0.00016931,2]
[367495504,1750825563469,-500.0,0.00016931,2]
[367495505,1750825563492,-500.0,0.00016931,2]
[367495506,1750825563516,-300.93922939,0.00016931,2]
[367495507,1750825563539,-500.0,0.00016931,2]
[367495508,1750825563562,-212.05473816,0.00016931,2]
[367495509,1750825563583,-500.0,0.00016931,2]
[367495510,1750825563605,-596.51941775,0.00016931,2]
[367495511,1750825563738,-500.0,0.00016931,2]
[367495512,1750825563801,-423.85816638,0.00016931,2]
[367495513,1750825563824,-175.43554881,0.00016931,2]
[367495514,1750825563846,-500.0,0.00016931,2]
[367495515,1750825563870,-500.0,0.00016931,2]
[367495516,1750825563895,-500.0,0.00016931,2]
[367495517,1750825563918,-500.0,0.00016931,2]
[367495518,1750825563941,-500.0,0.00016931,2]
[367495519,1750825563962,-219.19859052,0.00016931,2]
[367495520,1750825563984,-500.0,0.00016931,2]
[367495521,1750825564006,-500.0,0.00016931,2]
[367495522,1750825564028,-500.0,0.00016931,2]
[367495523,1750825564053,-500.0,0.00016931,2]
[367495524,1750825564074,-500.0,0.00016931,2]
[367495525,1750825564096,-556.38112722,0.00016931,2]
[367495526,1750825564120,-500.0,0.00016931,2]
[367495527,1750825564141,-592.17432715,0.00016931,2]
[367495528,1750825564162,-500.0,0.00016931,2]
[367495529,1750825564184,-500.0,0.00016931,2]
[367495530,1750825564206,-500.0,0.00016931,2]
[367495531,1750825564229,-500.0,0.00016931,2]
[367495532,1750825564250,-500.0,0.00016931,2]
[367495533,1750825564272,-500.0,0.00016931,2]
[367495534,1750825564296,-500.0,0.00016931,2]
[367495535,1750825564320,-196.1489428,0.00016931,2]
[367495536,1750825564343,-500.0,0.00016931,2]
[367495537,1750825564364,-460.0,0.00016932,2]
[367495538,1750825564387,-460.0,0.00016932,2]
[367495539,1750825564408,-430.0,0.00016932,2]
[367495540,1750825564430,-460.0,0.00016932,2]
[367495541,1750825564452,-1387.52,0.00016932,2]
[367495542,1750825564473,-460.0,0.00016932,2]
[367495543,1750825564495,-460.0,0.00016932,2]
[367495544,1750825564518,-1372.45,0.00016932,2]
[367495545,1750825564540,-460.0,0.00016932,2]
[367495546,1750825564561,-5779.43,0.00016932,2]
[367495547,1750825564583,-460.0,0.00016932,2]
[367495548,1750825564606,-1844.5,0.00016932,2]
[367495549,1750825564629,-460.0,0.00016932,2]
[367495550,1750825564653,-1038.97,0.00016932,2]
[367495551,1750825564675,-460.0,0.00016932,2]
[367495552,1750825564696,-460.0,0.00016934,2]
[367495553,1750825564717,-460.0,0.00016934,2]
[367495554,1750825564737,-262.74,0.00016934,2]
[367495555,1750825564758,-460.0,0.00016934,2]
[367495556,1750825564780,-460.0,0.00016934,2]
[367495557,1750825564801,-460.0,0.00016934,2]
[367495558,1750825564822,-460.0,0.00016934,2]
[367495559,1750825564843,-460.0,0.00016934,2]
[367495560,1750825564864,-460.0,0.00016934,2]
[367495561,1750825564886,-990.96,0.00016934,2]
[367495562,1750825564907,-500.0,0.00016934,2]
[367495563,1750825564927,-500.0,0.00016934,2]
[367495564,1750825564949,-1509.55,0.00016934,2]
[367495565,1750825564971,-460.0,0.00016934,2]
[367495566,1750825564994,-460.0,0.00016934,2]
[367495567,1750825565016,-500.0,0.00016934,2]
[367495568,1750825565041,-540.24256566,0.00016934,2]
[367495569,1750825565063,-460.0,0.00016934,2]
[367495570,1750825565085,-1210.06,0.00016934,2]
[367495571,1750825565106,-460.0,0.00016934,2]
[367495572,1750825565129,-541.23,0.00016934,2]
[367495573,1750825565150,-460.0,0.00016934,2]
[367495574,1750825565171,-460.0,0.00016934,2]
[367495575,1750825565190,-460.99173508,0.00016934,2]
[367495576,1750825565211,-391.70463202,0.00016934,2]
[367495577,1750825565231,-460.0,0.00016934,2]
[367495578,1750825565253,-460.0,0.00016934,2]
[367495579,1750825565274,-460.0,0.00016934,2]
[367495580,1750825565295,-460.0,0.00016934,2]
[367495581,1750825565317,-460.0,0.00016934,2]
[367495582,1750825565338,-460.0,0.00016934,2]
[367495583,1750825565361,-460.0,0.00016934,2]
[367495584,1750825565384,-460.0,0.00016934,2]
[367495585,1750825565405,-243.44,0.00016934,2]
[367495586,1750825565427,-460.0,0.00016934,2]
[367495587,1750825565449,-460.0,0.00016934,2]
[367495588,1750825565472,-343.29431678,0.00016934,2]
[367495589,1750825606215,-300.0,0.0001693,2]
[367495590,1750825606237,-397.32269341,0.00016931,2]
[367495591,1750825606260,-460.0,0.00016932,2]
[367495592,1750825606283,-460.0,0.00016932,2]
[367495593,1750825606306,-1195.78,0.00016932,2]
[367495594,1750825606328,-460.0,0.00016932,2]
[367495595,1750825606351,-1446.65,0.00016932,2]
[367495596,1750825606374,-1159.64,0.00016932,2]
[367495597,1750825606396,-460.0,0.00016932,2]
[367495598,1750825606419,-200.10435882,0.00016933,2]
[367495599,1750825606440,-450.70901414,0.00016933,2]
[367495600,1750825606462,-344.05771308,0.00016933,2]
[367495601,1750825606485,-577.34988253,0.00016933,2]
[367495602,1750825606507,-116.70568322,0.00016934,2]
[367495603,1750825606528,-460.0,0.00016934,2]
[367495604,1750825606549,-460.0,0.00016934,2]
[367495605,1750825606576,-460.0,0.00016934,2]
[367495606,1750825606765,-476.44649756,0.00016934,2]
[367495607,1750825606786,-115.23415724,0.00016934,2]
[367495623,1750825831951,-158.06052439,0.00016831,2]
[367495631,1750825832464,-158.06052438,0.00016832,2]
[367495632,1750825832477,-158.06052438,0.00016832,2]
[367495633,1750825832487,-158.06052438,0.00016833,2]
[367495634,1750825832497,-1200.0,0.00016931,2]
[367495635,1750825832507,-300.0,0.00016931,2]
[367495636,1750825832517,-518.68,0.00016932,2]
[367495637,1750825832527,-460.0,0.00016932,2]
[367495638,1750825832536,-460.0,0.00016932,2]
[367495639,1750825832546,-460.0,0.00016932,2]
[367495640,1750825832556,-460.0,0.00016932,2]
[367495641,1750825832565,-460.0,0.00016932,2]
[367495642,1750825832575,-460.0,0.00016932,2]
[367495643,1750825832585,-460.0,0.00016932,2]
[367495644,1750825832595,-515.93058515,0.00016932,2]
[367495645,1750825832604,-460.0,0.00016932,2]
[367495646,1750825832614,-460.0,0.00016932,2]
[367495647,1750825832623,-460.0,0.00016932,2]
[367495648,1750825832633,-479.69,0.00016932,2]
[367495649,1750825832642,-460.0,0.00016932,2]
[367495650,1750825832652,-468.0735199,0.00016932,2]
[367495651,1750825832662,-460.0,0.00016932,2]
[367495652,1750825832671,-2615.86,0.00016932,2]
[367495653,1750825832680,-225.1590052,0.00016932,2]
[367495654,1750825832690,-460.0,0.00016932,2]
[367495655,1750825832699,-460.0,0.00016932,2]
[367495656,1750825832709,-1232.47,0.00016932,2]
[367495657,1750825832719,-460.0,0.00016932,2]
[367495658,1750825832728,-460.0,0.00016932,2]
[367495659,1750825832738,-460.0,0.00016932,2]
[367495660,1750825832747,-460.0,0.00016932,2]
[367495661,1750825832758,-460.0,0.00016933,2]
[367495662,1750825832769,-553.61272818,0.00016933,2]
[367495663,1750825832778,-460.0,0.00016933,2]
[367495664,1750825832788,-460.0,0.00016933,2]
[367495665,1750825832798,-1329.71,0.00016933,2]
[367495666,1750825832808,-460.0,0.00016933,2]
[367495667,1750825832818,-3852.95,0.00016933,2]
[367495668,1750825832829,-1767.65,0.00016933,2]
[367495669,1750825832839,-460.0,0.00016933,2]
[367495670,1750825832848,-1315.27,0.00016933,2]
[367495671,1750825832857,-460.0,0.00016933,2]
[367495672,1750825832868,-460.0,0.00016933,2]
[367495673,1750825832877,-460.0,0.00016933,2]
[367495674,1750825832887,-460.0,0.00016933,2]
[367495675,1750825832896,-460.0,0.00016933,2]
[367495676,1750825832905,-1165.12,0.00016933,2]
[367495677,1750825832914,-995.68,0.00016933,2]
[367495678,1750825832925,-460.0,0.00016933,2]
[367495679,1750825832935,-1406.54,0.00016933,2]
[367495680,1750825832944,-460.0,0.00016933,2]
[367495681,1750825832953,-460.0,0.00016933,2]
[367495682,1750825832962,-460.0,0.00016933,2]
[367495683,1750825832971,-460.0,0.00016933,2]
[367495684,1750825832980,-460.0,0.00016934,2]
[367495685,1750825832989,-500.0,0.00016934,2]
[367495686,1750825832998,-460.0,0.00016934,2]
[367495687,1750825833007,-460.0,0.00016934,2]
[367495688,1750825833016,-460.0,0.00016934,2]
[367495689,1750825833026,-460.0,0.00016934,2]
[367495690,1750825833035,-460.0,0.00016934,2]
[367495691,1750825833044,-460.0,0.00016934,2]
[367495692,1750825833054,-460.0,0.00016934,2]
[367495693,1750825833063,-460.0,0.00016934,2]
[367495694,1750825833073,-460.0,0.00016934,2]
[367495695,1750825833082,-460.0,0.00016934,2]
[367495696,1750825833092,-460.0,0.00016934,2]
[367495697,1750825833101,-225.45189504,0.00016934,2]
[367495698,1750825833114,-234.54810496,0.00016934,2]
[367495699,1750825833123,-438.12968328,0.00016934,2]
[367495700,1750825833134,-462.228,0.00016934,2]
[367495701,1750825833150,-437.69231672,0.00016934,2]
[367495702,1750825833159,-460.0,0.00016934,2]
[367495703,1750825833168,-460.0,0.00016934,2]
[367495704,1750825833178,-460.0,0.00016934,2]
[367495705,1750825833187,-89.27848969,0.00016934,2]
[367495706,1750825833199,-370.72151031,0.00016934,2]
[367495707,1750825833208,-461.0,0.00016934,2]
[367495708,1750825833217,-460.0,0.00016934,2]
[367495709,1750825833227,-460.0,0.00016934,2]
[367495710,1750825833236,-234.3509696,0.00016934,2]
[367495711,1750825833253,-769.1190304,0.00016934,2]
[367495712,1750825833263,-509.57744576,0.00016934,2]
[367495713,1750825833272,-460.0,0.00016934,2]